bitfinex/quotes_BTCUSD_20241120
["timestamp","ask_amount","ask_price","bid_price","bid_amount"]
[1732090855887,0.0008553,93002.0,92999.0,0.107528]
[1732090856109,0.0008553,93002.0,92998.0,0.1]
[1732090856553,0.0008553,93002.0,92999.0,0.107527]
[1732090856791,0.0008553,93002.0,92998.0,0.1]
[1732090857027,0.0008553,93002.0,92992.0,0.0819]
[1732090857241,0.0008553,93002.0,92992.0,0.189435]
[1732090857453,0.0008553,93002.0,92994.0,0.107533]
[1732090857682,0.0008553,93002.0,92995.0,0.107532]
[1732090857910,0.0008553,93002.0,92993.0,0.107534]
[1732090858120,0.0008553,93002.0,92995.0,0.107532]
[1732090858526,0.0008553,93002.0,92992.0,0.0819]
[1732090858745,0.0008553,93002.0,92999.0,0.107527]
[1732090858964,0.0008553,93002.0,92992.0,0.0819]
[1732090859200,0.0008553,93002.0,93001.0,0.107525]
[1732090862644,0.0008553,93002.0,92999.0,0.107527]
[1732090862868,0.0008553,93002.0,93000.0,0.107526]
[1732090863106,0.0008553,93002.0,93001.0,0.107525]
[1732090863315,0.0008553,93002.0,92999.0,0.107527]
[1732090863754,0.0008553,93002.0,93001.0,0.107525]
[1732090863976,0.0008553,93002.0,93001.0,0.01204317]
[1732090864220,0.0008553,93002.0,93001.0,0.11956817]
[1732090866709,0.0008553,93002.0,93001.0,0.12171853]
[1732090866920,0.0008553,93002.0,93001.0,0.11956817]
[1732090867145,0.0008553,93002.0,93001.0,0.2036184]
[1732090867353,0.0008553,93002.0,93001.0,0.3136184]
[1732090867563,0.0008553,93002.0,93001.0,0.31146817]
[1732090868248,0.0008553,93002.0,93001.0,0.32479917]
[1732090869530,0.0008553,93002.0,93001.0,0.43386172]
[1732090871899,0.0008553,93002.0,93001.0,0.32479917]
[1732090872578,0.0008553,93002.0,93001.0,0.31146817]
[1732090874911,0.0008553,93002.0,93001.0,0.42053072]
[1732090875759,0.0008553,93008.0,93007.0,0.217518]
[1732090876640,0.0008553,93008.0,93007.0,0.32658055]
[1732090876846,0.0008553,93008.0,93007.0,0.217518]
[1732090877357,0.0008553,93008.0,93007.0,0.21966814]
[1732090878466,0.0008553,93008.0,93007.0,0.23304045]
[1732090878698,0.0008553,93008.0,93007.0,0.23089031]
[1732090879785,0.0008553,93008.0,93007.0,0.22089031]
[1732090880474,0.0831,93020.0,93018.0,0.107505]
[1732090880699,0.0831,93020.0,93011.0,0.107513]
[1732090880917,0.0831,93020.0,93014.0,0.10751]
[1732090881339,0.0831,93020.0,93015.0,0.107508]
[1732090882246,0.0831,93020.0,93017.0,0.107506]
[1732090882690,0.0831,93020.0,93019.0,0.107504]
[1732090882918,0.0831,93025.0,93017.0,0.107506]
[1732090883124,0.0831,93025.0,93019.0,0.107504]
[1732090883807,0.0831,93025.0,93017.0,0.107506]
[1732090884021,0.0831,93025.0,93015.0,0.107508]
[1732090884022,0.0831,93025.0,93018.0,0.107505]
[1732090884225,0.0831,93025.0,93019.0,0.107504]
[1732090884429,0.0008549,93029.0,93011.0,0.01]
[1732090884652,0.0008549,93029.0,93014.0,0.10751]
[1732090884929,0.0008549,93029.0,93025.0,0.107497]
[1732090885143,0.0008549,93029.0,93022.0,0.1075]
[1732090885350,0.0008549,93029.0,93024.0,0.107498]
[1732090885769,0.0008549,93029.0,93025.0,0.107497]
[1732090886658,0.0008549,93029.0,93027.0,0.107495]
[1732090887077,0.0008549,93029.0,93028.0,0.107494]
[1732090887703,0.0008549,93029.0,93027.0,0.107495]
[1732090887919,0.0008549,93029.0,93025.0,0.107497]
[1732090888141,0.0008549,93029.0,93018.0,0.322518]
[1732090888349,0.0008549,93029.0,93028.0,0.107494]
[1732090890507,0.078,93037.0,93030.0,0.107491]
[1732090890716,0.10906255,93036.0,93030.0,0.107491]
[1732090891127,0.078,93037.0,93030.0,0.107491]
[1732090891613,0.078,93037.0,93032.0,0.107488]
[1732090892246,0.078,93037.0,93035.0,0.107485]
[1732090892458,0.51,93047.0,93023.0,0.107499]
[1732090892459,0.51,93047.0,93031.0,0.01]
[1732090892753,0.51,93047.0,93043.0,0.107476]
[1732090892963,0.51,93047.0,93044.0,0.107476]
[1732090893199,0.51,93047.0,93038.0,0.107482]
[1732090893432,0.51,93047.0,93029.0,0.1]
[1732090893433,0.51,93047.0,93035.0,0.09583474]
[1732090893655,0.51,93047.0,93044.0,0.107475]
[1732090893876,0.51,93047.0,93035.0,0.09583474]
[1732090894121,0.51,93047.0,93046.0,0.107473]
[1732090894332,0.51,93047.0,93044.0,0.107475]
[1732090894548,0.51,93047.0,93034.0,0.09583474]
[1732090894767,0.51,93047.0,93040.0,0.107479]
[1732090894995,0.18547,93050.0,93040.0,0.107479]
[1732090895263,0.18547,93050.0,93042.0,0.107478]
[1732090895483,0.078,93050.0,93031.0,0.01]
[1732090895708,0.078,93050.0,93042.0,0.107477]
[1732090895927,0.078,93050.0,93031.0,0.21320199]
[1732090895928,0.078,93050.0,93037.0,0.107483]
[1732090896151,0.078,93050.0,93041.0,0.107478]
[1732090896605,0.10747,93049.0,93040.0,0.10748]
[1732090897247,0.10747,93049.0,93040.0,0.21496]
[1732090897433,0.078,93050.0,93031.0,0.01]
[1732090897639,0.078,93050.0,93040.0,0.107479]
[1732090897640,0.107472,93048.0,93040.0,0.107479]
[1732090898014,0.185469,93050.0,93041.0,0.107478]
[1732090898485,0.078,93050.0,93036.0,0.107484]
[1732090898687,0.185469,93050.0,93041.0,0.107479]
[1732090899514,0.078,93050.0,93041.0,0.107478]
[1732090899816,0.185469,93050.0,93041.0,0.107478]
[1732090900468,0.078,93050.0,93036.0,0.107484]
[1732090900670,0.185469,93050.0,93041.0,0.107478]
[1732090901234,0.179869,93050.0,93041.0,0.107478]
[1732090901441,0.179869,93050.0,93041.0,0.107479]
[1732090901666,0.179869,93050.0,93041.0,0.214958]
[1732090902096,0.179869,93050.0,93041.0,0.107479]
[1732090902308,0.32400255,93049.0,93031.0,0.01]
[1732090902556,0.32400255,93049.0,93029.0,0.107492]
[1732090902557,0.107484,93038.0,93029.0,0.107492]
[1732090902719,0.21495,93045.0,93027.0,0.107495]
[1732090902889,0.10906255,93044.0,93037.0,0.107484]
[1732090903372,0.10906255,93044.0,93034.0,0.107487]
[1732090903373,0.107477,93043.0,93034.0,0.107487]
[1732090903643,0.10906255,93043.0,93030.0,0.107492]
[1732090903865,0.21654055,93043.0,93033.0,0.107487]
[1732090904339,0.0771,93042.0,93033.0,0.107487]
[1732090904554,0.184578,93042.0,93033.0,0.107487]
[1732090904764,0.0771,93042.0,93033.0,0.107487]
[1732090905208,0.0771,93042.0,93027.0,0.207494]
[1732090905439,0.184579,93042.0,93033.0,0.107488]
[1732090905870,0.0771,93042.0,93032.0,0.107489]
[1732090906104,0.10748,93040.0,93032.0,0.214978]
[1732090906302,0.10748,93040.0,93032.0,0.107489]
[1732090906544,0.10748,93040.0,93033.0,0.107488]
[1732090907379,0.10748,93040.0,93031.0,0.10749]
[1732090908316,0.0771,93049.0,93032.0,0.076]
[1732090908526,0.10906255,93048.0,93042.0,0.107478]
[1732090908738,0.10906255,93048.0,93032.0,0.08287465]
[1732090908950,0.10906255,93048.0,93041.0,0.107479]
[1732090909417,0.10906255,93048.0,93041.0,0.107478]
[1732090909653,0.10906255,93048.0,93038.0,0.107482]
[1732090909654,0.21653455,93048.0,93038.0,0.107482]
[1732090909872,0.0771,93049.0,93043.0,0.107476]
[1732090910312,0.0771,93049.0,93042.0,0.107477]
[1732090910550,0.0771,93049.0,93040.0,0.107479]
[1732090910756,0.0771,93049.0,93041.0,0.107479]
[1732090910979,0.0771,93049.0,93042.0,0.107477]
[1732090911207,0.0771,93049.0,93040.0,0.107479]
[1732090911418,0.0771,93049.0,93041.0,0.107478]
[1732090911627,0.0771,93049.0,93038.0,0.107482]
[1732090911874,0.107472,93047.0,93037.0,0.107483]
[1732090912079,0.107473,93047.0,93034.0,0.107487]
[1732090912287,0.0771,93049.0,93038.0,0.214964]
[1732090912499,0.107475,93045.0,93036.0,0.107484]
[1732090912724,0.107475,93045.0,93037.0,0.107483]
[1732090912937,0.0456,93043.0,93029.0,0.0017094]
[1732090913165,0.107492,93030.0,93029.0,0.0017094]
[1732090913379,0.184592,93030.0,93029.0,0.0017094]
[1732090914290,0.0771,93030.0,93029.0,0.0017094]
[1732090915633,0.184592,93030.0,93029.0,0.0017094]
[1732090920907,0.29365455,93030.0,93029.0,0.0017094]
[1732090922308,0.29565455,93030.0,93029.0,0.0017094]
[1732090922551,0.29365455,93030.0,93029.0,0.0017094]
[1732090923513,0.33780486,93030.0,93029.0,0.0017094]
[1732090923747,0.39540486,93030.0,93029.0,0.0017094]
[1732090925107,0.39340486,93030.0,93029.0,0.0017094]
[1732090926512,0.41840486,93030.0,93029.0,0.0017094]
[1732090929500,0.41840486,93030.0,93002.0,0.0017098]
[1732090929501,0.240223,93003.0,93002.0,0.0017098]
[1732090929746,0.34928555,93003.0,93002.0,0.0017098]
[1732090930418,0.184623,93003.0,93002.0,0.0017098]
[1732090931572,0.29368555,93003.0,93002.0,0.0017098]
[1732090932012,0.35338555,93003.0,93002.0,0.0017098]
[1732090932487,0.34338555,93003.0,93002.0,0.0017098]
[1732090935429,0.35338555,93003.0,93002.0,0.0017098]
[1732090935849,0.34338555,93003.0,93002.0,0.0017098]
[1732090936561,0.0794,93014.0,93002.0,0.1092328]
[1732090936773,0.10906255,93011.0,93002.0,0.0017098]
[1732090936974,0.10906255,93011.0,93003.0,0.107522]
[1732090937199,0.107519,93007.0,93002.0,0.0017098]
[1732090937912,0.107508,93016.0,93007.0,0.107518]
[1732090938133,0.10906255,93015.0,93007.0,0.107517]
[1732090938542,0.10906255,93015.0,93008.0,0.107517]
[1732090938842,0.24109321,93063.0,93004.0,0.107522]
[1732090938843,0.04324561,93028.0,93010.0,0.0473]
[1732090939095,0.97939786,93029.0,93010.0,0.0473]
[1732090939096,0.97939786,93029.0,93019.0,0.107504]
[1732090939311,0.2825,93031.0,93017.0,0.107506]
[1732090939546,0.107494,93028.0,93019.0,0.107504]
[1732090940654,0.32404655,93030.0,93019.0,0.107504]
[1732090940655,0.10906255,93030.0,93019.0,0.107504]
[1732090940870,0.32404655,93030.0,93012.0,0.10966203]
[1732090941073,0.107496,93027.0,93012.0,0.00215003]
[1732090941307,0.107498,93025.0,93015.0,0.107508]
[1732090941535,0.107496,93027.0,93017.0,0.107506]
[1732090941759,0.107496,93027.0,93016.0,0.107507]
[1732090941981,0.107511,93014.0,93010.0,0.001709]
[1732090942193,0.1291,93025.0,93010.0,0.001709]
[1732090942194,0.107514,93011.0,93010.0,0.001709]
[1732090942401,0.21657655,93011.0,93010.0,0.001709]
[1732090943336,0.10906255,93011.0,93010.0,0.001709]
[1732090943540,0.21657655,93011.0,93010.0,0.001709]
[1732090946455,0.29847655,93011.0,93010.0,0.001709]
[1732090947552,0.34357655,93011.0,93010.0,0.001709]
[1732090948414,0.35357655,93011.0,93010.0,0.001709]
[1732090949955,0.37657655,93011.0,93010.0,0.001709]
[1732090950162,0.37857655,93011.0,93010.0,0.001709]
[1732090950837,0.37857655,93011.0,92972.0,0.0017098]
[1732090950838,0.01,92973.0,92972.0,0.0017098]
[1732090951026,0.24962055,92973.0,92972.0,0.0017098]
[1732090951383,0.22662055,92973.0,92972.0,0.0017098]
[1732090951593,0.22862055,92973.0,92972.0,0.0017098]
[1732090951814,0.11906255,92973.0,92972.0,0.0017098]
[1732090952025,0.22862055,92973.0,92972.0,0.0017098]
[1732090952481,0.25162055,92973.0,92972.0,0.0017098]
[1732090956207,0.24962055,92973.0,92972.0,0.0017098]
[1732090957315,0.11906255,92973.0,92972.0,0.0017098]
[1732090957576,0.10906255,92973.0,92972.0,0.0017098]
[1732090957795,0.01,92987.0,92972.0,0.0017098]
[1732090958014,0.10906255,92981.0,92972.0,0.0017098]
[1732090960555,0.10906255,92981.0,92972.0,0.1092688]
[1732090960775,0.10906255,92981.0,92972.0,0.0017098]
[1732090960982,0.10906255,92981.0,92973.0,0.107556]
[1732090961195,0.10906255,92981.0,92972.0,0.0017098]
[1732090961408,0.10906255,92981.0,92972.0,0.1092678]
[1732090961711,0.10906255,92981.0,92972.0,0.0017098]
[1732090961909,0.10906255,92981.0,92962.0,0.10757]
[1732090962324,0.10906255,92981.0,92968.0,0.107563]
[1732090962530,0.38431801,92994.0,92962.0,0.1097212]
[1732090962531,0.51,92992.0,92962.0,0.0021512]
[1732090962744,0.10906255,92990.0,92966.0,0.12415101]
[1732090962947,0.10906255,92990.0,92979.0,0.10755]
[1732090963176,0.10906255,92990.0,92981.0,0.107547]
[1732090963592,0.10906255,92990.0,92976.0,0.107554]
[1732090963792,0.10906255,92990.0,92977.0,0.107553]
[1732090963928,0.10906255,92990.0,92959.0,0.12415101]
[1732090963929,0.10906255,92990.0,92978.0,0.107551]
[1732090964137,0.10906255,92990.0,92978.0,0.215102]
[1732090964338,0.10906255,92990.0,92976.0,0.107554]
[1732090964545,0.10906255,92990.0,92977.0,0.107552]
[1732090964952,0.10906255,92990.0,92975.0,0.107555]
[1732090965172,0.10906255,92990.0,92968.0,0.107563]
[1732090965173,0.322618,92989.0,92968.0,0.107563]
[1732090965367,0.10906255,92988.0,92968.0,0.107563]
[1732090965616,0.107543,92986.0,92968.0,0.215126]
[1732090965827,0.10906255,92985.0,92968.0,0.107563]
[1732090966049,0.10906255,92985.0,92961.0,0.0117088]
[1732090966249,0.10906255,92985.0,92962.0,0.118327]
[1732090966462,0.10906255,92985.0,92965.0,0.107566]
[1732090966667,0.10906255,92985.0,92967.0,0.107564]
[1732090966668,0.21660655,92985.0,92967.0,0.107564]
[1732090966888,0.10906255,92985.0,92966.0,0.0008552]
[1732090967295,0.10906255,92985.0,92968.0,0.107563]
[1732090967494,0.21660655,92985.0,92968.0,0.107563]
[1732090967750,0.107547,92983.0,92966.0,0.1084202]
[1732090967922,0.10906255,92982.0,92967.0,0.107564]
[1732090968123,0.10906255,92982.0,92968.0,0.107563]
[1732090968984,0.10906255,92982.0,92966.0,0.1084202]
[1732090969782,0.10906255,92982.0,92968.0,0.107563]
[1732090970870,0.10906255,92982.0,92967.0,0.107564]
[1732090971402,0.10906255,92982.0,92966.0,0.2159852]
[1732090971641,0.10906255,92982.0,92966.0,0.1084202]
[1732090972208,0.10906255,92982.0,92966.0,0.0008552]
[1732090972625,0.04906255,92982.0,92966.0,0.0008552]
[1732090973278,0.107549,92981.0,92966.0,0.0008552]
[1732090973480,0.10906255,92981.0,92966.0,0.0008552]
[1732090973705,0.21661155,92981.0,92966.0,0.0008552]
[1732090973915,0.107552,92979.0,92966.0,0.0008552]
[1732090974803,0.32415955,92981.0,92966.0,0.0008552]
[1732090975028,0.082,92986.0,92966.0,0.0008552]
[1732090975029,0.107557,92974.0,92966.0,0.0008552]
[1732090975262,0.10906255,92978.0,92966.0,0.0008552]
[1732090975470,0.107557,92974.0,92966.0,0.0008552]
[1732090976360,0.107558,92973.0,92966.0,0.0008552]
[1732090976580,0.107559,92973.0,92966.0,0.0008552]
[1732090977023,0.107556,92975.0,92966.0,0.0008552]
[1732090977253,0.21661855,92975.0,92966.0,0.0008552]
[1732090977458,0.107557,92974.0,92966.0,0.0008552]
[1732090977663,0.10906255,92974.0,92966.0,0.0008552]
[1732090977864,0.21661955,92974.0,92966.0,0.0008552]
[1732090978342,0.107558,92973.0,92966.0,0.0008552]
[1732090978558,0.10906255,92972.0,92966.0,0.0008552]
[1732090980305,0.12615101,92987.0,92966.0,0.0008552]
[1732090980306,0.01,92983.0,92966.0,0.0008552]
[1732090980513,0.10906255,92976.0,92966.0,0.0008552]
[1732090981187,0.10906255,92976.0,92966.0,0.1084202]
[1732090981454,0.10906255,92976.0,92966.0,0.0008552]
[1732090981673,0.0017106,92986.0,92970.0,0.107561]
[1732090981898,0.10906255,92985.0,92966.0,0.0008552]
[1732090982330,0.107545,92984.0,92966.0,0.0008552]
[1732090982555,0.10906255,92983.0,92966.0,0.0008552]
[1732090983274,0.10755,92980.0,92966.0,0.0008552]
[1732090983756,0.107548,92982.0,92966.0,0.0008552]
[1732090983994,0.107554,92977.0,92966.0,0.0008552]
[1732090984227,0.107556,92975.0,92966.0,0.0008552]
[1732090984432,0.10906255,92974.0,92966.0,0.0008552]
[1732090984717,0.21661955,92974.0,92966.0,0.0008552]
[1732090985175,0.10906255,92974.0,92966.0,0.0008552]
[1732090985382,0.21661955,92974.0,92966.0,0.0008552]
[1732090985585,0.10756,92972.0,92966.0,0.0008552]
[1732090985789,0.10906255,92971.0,92966.0,0.0008552]
[1732090986237,0.107563,92969.0,92966.0,0.0008552]
[1732090986478,0.10906255,92969.0,92966.0,0.0008552]
[1732090986707,0.215115,92974.0,92966.0,0.0008552]
[1732090986708,0.21662555,92968.0,92966.0,0.0008552]
[1732090986944,0.21662655,92968.0,92966.0,0.0008552]
[1732090987198,0.107565,92967.0,92966.0,0.0008552]
[1732090987617,0.21662755,92967.0,92966.0,0.0008552]
[1732090989297,0.21662755,92967.0,92947.0,0.01]
[1732090989298,0.107568,92964.0,92947.0,0.01]
[1732090989506,0.10906255,92963.0,92946.0,0.08531287]
[1732090989938,0.107564,92968.0,92951.0,0.107583]
[1732090990157,0.10906255,92967.0,92952.0,0.107582]
[1732090990365,0.10906255,92967.0,92950.0,0.107584]
[1732090990584,0.10906255,92967.0,92947.0,0.01215161]
[1732090990585,0.215132,92966.0,92947.0,0.107587]
[1732090990869,0.01,92976.0,92944.0,0.045]
[1732090990870,0.10906255,92965.0,92944.0,0.045]
[1732090991084,0.10906255,92965.0,92944.0,0.0121516]
[1732090991319,0.322705,92964.0,92947.0,0.107587]
[1732090991521,0.107577,92957.0,92944.0,0.04556307]
[1732090991747,0.107576,92957.0,92944.0,0.04341147]
[1732090991995,0.107577,92956.0,92942.0,0.107593]
[1732090992241,0.215123,92970.0,92942.0,0.107593]
[1732090992242,0.1301,92975.0,92951.0,0.12415101]
[1732090992464,0.1301,92975.0,92945.0,0.01]
[1732090992465,0.10906255,92969.0,92952.0,0.11834]
[1732090992679,0.10906255,92969.0,92949.0,0.00215148]
[1732090992901,0.10906255,92969.0,92956.0,0.107576]
[1732090993318,0.10906255,92969.0,92954.0,0.107579]
[1732090993535,0.10906255,92969.0,92951.0,0.0489]
[1732090993742,0.10906255,92969.0,92949.0,0.00215147]
[1732090993947,0.107566,92967.0,92949.0,0.10973647]
[1732090994150,0.10906255,92966.0,92942.0,0.17675678]
[1732090994361,0.107568,92964.0,92947.0,0.107587]
[1732090994568,0.10906255,92963.0,92947.0,0.107587]
[1732090995209,0.10906255,92963.0,92946.0,0.107588]
[1732090995442,0.21663255,92963.0,92946.0,0.09595678]
[1732090995668,0.10906255,92963.0,92945.0,0.09595678]
[1732090995922,0.10906255,92963.0,92947.0,0.107587]
[1732090996828,0.10906255,92963.0,92946.0,0.09595678]
[1732090997060,0.10906255,92963.0,92949.0,0.107585]
[1732090997560,0.10906255,92963.0,92953.0,0.10758]
[1732090997797,0.345213,92975.0,92947.0,0.09595678]
[1732090998024,0.107563,92969.0,92951.0,0.107582]
[1732090998270,0.32417555,92974.0,92948.0,0.107587]
[1732090998271,0.10906255,92968.0,92948.0,0.20354378]
[1732090998505,0.107568,92965.0,92948.0,0.20354378]
[1732090998757,0.107565,92967.0,92949.0,0.20354178]
[1732090998983,0.107571,92962.0,92949.0,0.09595678]
[1732090999228,0.10906255,92962.0,92951.0,0.20353978]
[1732090999447,0.10906255,92962.0,92954.0,0.09595678]
[1732090999673,0.10906255,92962.0,92953.0,0.09595678]
[1732091000596,0.10906255,92962.0,92951.0,0.09595678]
[1732091001510,0.21663355,92962.0,92949.0,0.09595678]
[1732091001711,0.10906255,92962.0,92949.0,0.09595678]
[1732091001930,0.21663255,92962.0,92949.0,0.09595678]
[1732091002146,0.10906255,92962.0,92949.0,0.09595678]
[1732091002824,0.10906255,92961.0,92949.0,0.09595678]
[1732091003029,0.21663555,92961.0,92949.0,0.09595678]
[1732091003240,0.0803,92960.0,92949.0,0.09595678]
[1732091003452,0.0803,92960.0,92949.0,0.09609541]
[1732091003453,0.10906255,92959.0,92949.0,0.09609541]
[1732091003944,0.10906255,92959.0,92951.0,0.09609541]
[1732091004175,0.10906255,92959.0,92950.0,0.09609541]
[1732091004860,0.10906255,92959.0,92949.0,0.09609541]
[1732091005555,0.578,92954.0,92949.0,0.09609541]
[1732091005784,0.10906255,92959.0,92952.0,0.09609541]
[1732091007880,0.10906255,92959.0,92951.0,0.09609541]
[1732091008335,0.10906255,92959.0,92949.0,0.14414311]
[1732091008336,0.10906255,92959.0,92952.0,0.09608162]
[1732091008566,0.15506255,92959.0,92949.0,0.09608162]
[1732091008795,0.107575,92958.0,92947.0,0.09693702]
[1732091009039,0.15506255,92959.0,92947.0,0.09693702]
[1732091009040,0.107584,92951.0,92947.0,0.0008554]
[1732091009284,0.107587,92948.0,92947.0,0.0008554]
[1732091009491,0.21664955,92948.0,92947.0,0.0008554]
[1732091010441,0.10906255,92948.0,92947.0,0.0008554]
[1732091010658,0.21664955,92948.0,92947.0,0.0008554]
[1732091010907,0.49914955,92948.0,92947.0,0.0008554]
[1732091012054,0.58004955,92948.0,92947.0,0.0008554]
[1732091012955,0.62604955,92948.0,92947.0,0.0008554]
[1732091013360,0.63604955,92948.0,92947.0,0.0008554]
[1732091013799,0.65904955,92948.0,92947.0,0.0008554]
[1732091014273,0.70322847,92948.0,92947.0,0.0008554]
[1732091014729,0.70522847,92948.0,92947.0,0.0008554]
[1732091015493,0.70493847,92948.0,92947.0,0.0008554]
[1732091018090,0.69493847,92948.0,92947.0,0.0008554]
[1732091018334,0.67193847,92948.0,92947.0,0.0008554]
[1732091021957,0.52017255,92948.0,92947.0,0.0008554]
[1732091022380,0.62775955,92948.0,92947.0,0.0008554]
[1732091022891,0.52017255,92948.0,92947.0,0.0008554]
[1732091023528,0.62775955,92948.0,92947.0,0.0008554]
[1732091023748,0.52017255,92948.0,92947.0,0.0008554]
[1732091024459,0.62775955,92948.0,92947.0,0.0008554]
[1732091024897,0.47417255,92948.0,92947.0,0.0008554]
[1732091026276,0.39327255,92948.0,92947.0,0.0008554]
[1732091029812,0.0017102,92982.0,92961.0,0.107571]
[1732091030050,0.0017102,92982.0,92962.0,0.15717]
[1732091030281,0.0017102,92982.0,92962.0,0.159321]
[1732091030753,0.0017102,92982.0,92962.0,0.33811992]
[1732091030980,0.0017102,92982.0,92962.0,0.33596892]
[1732091031437,0.0017102,92982.0,92962.0,0.24013921]
[1732091032154,0.0017102,92982.0,92962.0,0.2939085]
[1732091032822,0.0017102,92982.0,92962.0,0.33515716]
[1732091039346,0.0017102,92982.0,92962.0,0.32515716]
[1732091040004,0.0017102,92982.0,92962.0,0.33515716]
[1732091041107,0.0017102,92982.0,92962.0,0.32515716]
[1732091042409,0.0017102,92982.0,92962.0,0.33515716]
[1732091042616,0.0017102,92982.0,92962.0,0.32515716]
[1732091042823,0.0017102,92982.0,92962.0,0.33515716]
[1732091043956,0.0017102,92982.0,92962.0,0.33664971]
[1732091044175,0.0017102,92982.0,92981.0,0.107548]
[1732091045715,0.0017102,92982.0,92981.0,0.1096988]
[1732091047202,0.0017102,92982.0,92981.0,0.47652842]
[1732091047438,0.0017102,92982.0,92981.0,0.48652842]
[1732091049047,0.0017102,92982.0,92981.0,0.68216426]
[1732091049268,0.0017102,92982.0,92981.0,0.58652842]
[1732091049754,0.0017102,92982.0,92981.0,0.62031665]
[1732091051034,0.0017102,92982.0,92981.0,0.58652842]
[1732091051735,0.0017102,92982.0,92981.0,0.47652842]
[1732091051968,0.0017102,92982.0,92981.0,0.107548]
[1732091052422,0.0017102,92982.0,92981.0,0.10969868]
[1732091053114,0.0017102,92982.0,92970.0,0.045]
[1732091053115,0.0017102,92982.0,92966.0,0.12421787]
[1732091053321,0.0017102,92982.0,92976.0,0.107554]
[1732091053563,0.0017102,92982.0,92959.0,0.01]
[1732091053777,0.0017102,92982.0,92970.0,0.107561]
[1732091054009,0.0017102,92982.0,92971.0,0.107559]
[1732091054246,0.0017102,92982.0,92959.0,0.01]
[1732091054478,0.0017102,92982.0,92971.0,0.10756]
[1732091054723,0.0017102,92982.0,92947.0,0.0008554]
[1732091054724,0.02,92958.0,92947.0,0.0008554]
[1732091054957,0.47955542,92958.0,92947.0,0.0008554]
[1732091055214,0.24776255,92958.0,92947.0,0.0008554]
[1732091055434,0.35533755,92958.0,92947.0,0.0008554]
[1732091055859,0.35733755,92958.0,92947.0,0.0008554]
[1732091056075,0.35533755,92958.0,92947.0,0.0008554]
[1732091060501,0.38833755,92958.0,92947.0,0.0008554]
[1732091061183,0.49833755,92958.0,92947.0,0.0008554]
[1732091061403,0.50033755,92958.0,92947.0,0.0008554]
[1732091062923,0.62455542,92958.0,92947.0,0.0008554]
[1732091063153,0.62626522,92958.0,92947.0,0.0008554]
[1732091073348,2.28753388,92958.0,92947.0,0.0008554]
[1732091076961,0.869087,92948.0,92947.0,0.0008554]
[1732091077176,1.12536742,92948.0,92947.0,0.0008554]
[1732091077624,1.12536742,92948.0,92938.0,0.001709]
[1732091077625,0.139597,92939.0,92938.0,0.001709]
[1732091077819,1.05187742,92939.0,92938.0,0.001709]
[1732091078263,1.17609529,92939.0,92938.0,0.001709]
[1732091079104,0.532,92936.0,92935.0,0.0017094]
[1732091079307,0.95216255,92936.0,92935.0,0.0017094]
[1732091079537,1.00116255,92936.0,92935.0,0.0017094]
[1732091083554,1.13406374,92912.0,92891.0,0.0004]
[1732091083768,1.45702629,92912.0,92891.0,0.0004]
[1732091083975,0.239631,92910.0,92891.0,0.0004]
[1732091084237,0.37169355,92910.0,92891.0,0.0004]
[1732091084461,0.49591142,92910.0,92891.0,0.0004]
[1732091084915,0.57076856,92910.0,92891.0,0.0004]
[1732091085174,0.01,92876.0,92864.0,1.0008549]
[1732091085422,0.01,92876.0,92867.0,0.10768]
[1732091085649,0.01,92877.0,92868.0,0.107678]
[1732091085867,0.01,92877.0,92864.0,1.0008549]
[1732091085868,0.107672,92875.0,92864.0,1.1085379]
[1732091086094,0.107673,92874.0,92864.0,1.1085379]
[1732091086316,0.215359,92868.0,92864.0,1.0008549]
[1732091086577,0.107683,92865.0,92864.0,1.0008549]
[1732091087021,0.117678,92869.0,92864.0,1.0008549]
[1732091087264,0.117683,92865.0,92864.0,1.0008549]
[1732091087494,0.11906255,92865.0,92864.0,1.0008549]
[1732091087722,0.22674555,92865.0,92864.0,1.0008549]
[1732091091303,0.11906255,92865.0,92864.0,1.0008549]
[1732091091542,0.215344,92875.0,92864.0,1.0008549]
[1732091091543,0.01,92866.0,92864.0,1.0008549]
[1732091092037,0.01,92866.0,92864.0,1.1085379]
[1732091092264,0.01,92866.0,92864.0,1.0008549]
[1732091092954,0.01,92866.0,92864.0,0.80714859]
[1732091094512,0.01,92866.0,92864.0,0.91483159]
[1732091094934,0.01,92866.0,92864.0,0.80714859]
[1732091095589,0.01,92866.0,92865.0,0.01334566]
[1732091096638,0.11906255,92874.0,92864.0,0.80714859]
[1732091096849,0.11906255,92874.0,92867.0,0.10768]
[1732091097060,0.10906255,92874.0,92866.0,0.107681]
[1732091097283,0.11906255,92874.0,92866.0,0.107681]
[1732091097501,0.01,92873.0,92866.0,0.107681]
[1732091097736,0.10906255,92872.0,92867.0,0.12102613]
[1732091097950,0.10906255,92872.0,92867.0,0.0133456]
[1732091098163,0.10906255,92872.0,92868.0,0.0133456]
[1732091098384,0.10906255,92872.0,92867.0,0.0133456]
[1732091098601,0.01,92872.0,92868.0,0.0133456]
[1732091098819,0.01,92872.0,92869.0,0.0133456]
[1732091099033,0.01,92875.0,92870.0,0.0133456]
[1732091099381,0.01,92895.0,92871.0,0.0133456]
[1732091099382,0.01,92877.0,92871.0,0.0133456]
[1732091099472,0.01,92877.0,92873.0,0.107673]
[1732091099678,0.01,92877.0,92874.0,0.0133456]
[1732091099905,0.01,92881.0,92878.0,0.107667]
[1732091100142,0.01,92880.0,92879.0,0.0133456]
[1732091100354,0.11906255,92881.0,92875.0,0.107671]
[1732091100571,0.01,92879.0,92876.0,0.0133456]
[1732091100780,0.10906255,92878.0,92877.0,0.0133456]
[1732091100991,0.10906255,92878.0,92875.0,0.107671]
[1732091101273,0.11906255,92878.0,92877.0,0.01334615]
[1732091102148,0.22673055,92878.0,92877.0,0.01334615]
[1732091102376,0.11906255,92878.0,92877.0,0.01334615]
[1732091102604,0.22673055,92878.0,92877.0,0.01334615]
[1732091103041,0.11906255,92878.0,92877.0,0.01334615]
[1732091103257,0.22673055,92878.0,92877.0,0.01334615]
[1732091103473,0.22673055,92878.0,92865.0,0.107682]
[1732091103474,0.107669,92877.0,92865.0,0.107682]
[1732091103674,0.21673255,92876.0,92866.0,0.01336274]
[1732091103892,0.10906255,92876.0,92867.0,0.12104274]
[1732091104117,0.10906255,92876.0,92868.0,0.01336274]